[Event "*** SCC Grand Prix: Titled Tuesday Blitz"]
[Site "Chess.com"]
[Date "2020.09.08"]
[Round "9"]
[White "Bayernbk"]
[Black "aloe_normansen"]
[Result "1-0"]
[WhiteElo "2521"]
[BlackElo "2364"]
[TimeControl "180+1"]
[EndTime "11:47:47 PDT"]
[Termination "Bayernbk won by resignation"]

1. e4 {[%clk 0:03:00.9]} 1... c5 {[%clk 0:02:59.9]} 2. c3 {[%clk 0:03:01]} 2...
d5 {[%clk 0:02:59.6]} 3. exd5 {[%clk 0:03:01.3]} 3... Qxd5 {[%clk 0:03:00.5]} 4.
d4 {[%clk 0:03:01.9]} 4... Nf6 {[%clk 0:03:00.6]} 5. Nf3 {[%clk 0:03:02.5]} 5...
Bg4 {[%clk 0:03:00.2]} 6. Be2 {[%clk 0:03:02.7]} 6... e6 {[%clk 0:02:59.4]} 7.
O-O {[%clk 0:03:02.5]} 7... Nc6 {[%clk 0:02:58.3]} 8. Be3 {[%clk 0:03:02.3]}
8... cxd4 {[%clk 0:02:57.8]} 9. Nxd4 {[%clk 0:03:02.9]} 9... Bxe2 {[%clk
0:02:54.9]} 10. Qxe2 {[%clk 0:03:03.5]} 10... Nxd4 {[%clk 0:02:52.8]} 11. Bxd4
{[%clk 0:03:01.9]} 11... Be7 {[%clk 0:02:52.4]} 12. Rd1 {[%clk 0:03:02.3]} 12...
Qc6 {[%clk 0:02:51.8]} 13. Nd2 {[%clk 0:03:02.8]} 13... O-O {[%clk 0:02:49.9]}
14. Bxf6 {[%clk 0:03:03.3]} 14... Bxf6 {[%clk 0:02:49.7]} 15. Ne4 {[%clk
0:03:04]} 15... Be7 {[%clk 0:02:49.8]} 16. Rd2 {[%clk 0:03:04.6]} 16... Rfd8
{[%clk 0:02:48.9]} 17. Rad1 {[%clk 0:03:05]} 17... Rxd2 {[%clk 0:02:42.2]} 18.
Rxd2 {[%clk 0:03:04.8]} 18... Rd8 {[%clk 0:02:39.9]} 19. Rxd8+ {[%clk
0:03:04.3]} 19... Bxd8 {[%clk 0:02:40.8]} 20. Qd3 {[%clk 0:03:04.3]} 20... Be7
{[%clk 0:02:39.4]} 21. g3 {[%clk 0:03:04.8]} 21... h6 {[%clk 0:02:37]} 22. c4
{[%clk 0:03:05.3]} 22... a6 {[%clk 0:02:35.7]} 23. a3 {[%clk 0:03:04.2]} 23...
b5 {[%clk 0:02:34.2]} 24. cxb5 {[%clk 0:02:48.3]} 24... axb5 {[%clk 0:02:35.1]}
25. Nc3 {[%clk 0:02:42.9]} 25... b4 {[%clk 0:02:19.3]} 26. axb4 {[%clk
0:02:42.9]} 26... Bxb4 {[%clk 0:02:20.2]} 27. Qe4 {[%clk 0:02:38.3]} 27... Qd6
{[%clk 0:02:06.1]} 28. Kg2 {[%clk 0:02:32.8]} 28... Bc5 {[%clk 0:02:02.1]} 29.
Qa8+ {[%clk 0:02:18]} 29... Kh7 {[%clk 0:02:00.8]} 30. Ne4 {[%clk 0:02:16.9]}
30... Qd4 {[%clk 0:01:57.7]} 31. Nxc5 {[%clk 0:02:15.6]} 31... Qxc5 {[%clk
0:01:58.6]} 32. Qe4+ {[%clk 0:02:05]} 32... g6 {[%clk 0:01:58.2]} 33. b4 {[%clk
0:02:02.4]} 33... Qb5 {[%clk 0:01:53.8]} 34. Qf4 {[%clk 0:01:55.4]} 34... Kg7
{[%clk 0:01:19.5]} 35. h4 {[%clk 0:01:21.8]} 35... e5 {[%clk 0:01:18.5]} 36. Qd2
{[%clk 0:01:17.1]} 36... Qc6+ {[%clk 0:01:07.6]} 37. Kh2 {[%clk 0:01:11.1]}
37... f5 {[%clk 0:01:05.1]} 38. Qb2 {[%clk 0:01:08.4]} 38... Qb5 {[%clk
0:01:04.2]} 39. f4 {[%clk 0:01:01.3]} 39... Kf6 {[%clk 0:01:00.4]} 40. h5 {[%clk
0:00:39.5]} 40... g5 {[%clk 0:00:56.2]} 41. Kg2 {[%clk 0:00:18.1]} 41... g4
{[%clk 0:00:51.6]} 42. fxe5+ {[%clk 0:00:05.2]} 42... Qxe5 {[%clk 0:00:52.5]}
43. Qxe5+ {[%clk 0:00:04.9]} 43... Kxe5 {[%clk 0:00:53.4]} 44. b5 {[%clk
0:00:05.5]} 44... Kd5 {[%clk 0:00:53.3]} 45. Kf2 {[%clk 0:00:06]} 45... Kc5
{[%clk 0:00:49.2]} 46. Ke3 {[%clk 0:00:06.3]} 46... Kxb5 {[%clk 0:00:47.4]} 47.
Kf4 {[%clk 0:00:06.8]} 47... Kc5 {[%clk 0:00:47]} 48. Kxf5 {[%clk 0:00:07.2]}
48... Kd5 {[%clk 0:00:46.5]} 49. Kg6 {[%clk 0:00:04.5]} 49... Ke4 {[%clk
0:00:46.6]} 50. Kxh6 {[%clk 0:00:05.1]} 50... Kf3 {[%clk 0:00:46.3]} 51. Kg5
{[%clk 0:00:05.5]} 51... Kxg3 {[%clk 0:00:46.8]} 52. h6 {[%clk 0:00:06.2]} 52...
Kf3 {[%clk 0:00:46.2]} 53. h7 {[%clk 0:00:06.8]} 53... g3 {[%clk 0:00:46.7]} 54.
h8=Q {[%clk 0:00:07]} 54... g2 {[%clk 0:00:46.7]} 55. Qd4 {[%clk 0:00:06.9]}
55... Kg3 {[%clk 0:00:40]} 56. Qg1 {[%clk 0:00:07.3]} 56... Kf3 {[%clk
0:00:38.6]} 57. Kh4 {[%clk 0:00:07.4]} 57... Kf4 {[%clk 0:00:38.2]} 58. Kh3
{[%clk 0:00:07.6]} 58... Kf3 {[%clk 0:00:37.9]} 59. Qxg2+ {[%clk 0:00:08.2]}
59... Kf4 {[%clk 0:00:38.8]} 60. Qg3+ {[%clk 0:00:08.8]} 60... Kf5 {[%clk
0:00:39]} 61. Kg2 {[%clk 0:00:09.4]} 61... Ke4 {[%clk 0:00:38.7]} 62. Qf3+
{[%clk 0:00:09.8]} 62... Kd4 {[%clk 0:00:39.6]} 63. Kf2 {[%clk 0:00:10.1]} 63...
Kc4 {[%clk 0:00:40.5]} 64. Ke3 {[%clk 0:00:10.4]} 64... Kb4 {[%clk 0:00:40.5]}
65. Qc6 {[%clk 0:00:10.1]} 65... Kb3 {[%clk 0:00:40.5]} 66. Kd3 {[%clk
0:00:10.4]} 1-0

[Event "*** SCC Grand Prix: Titled Tuesday Blitz"]
[Site "Chess.com"]
[Date "2020.09.08"]
[Round "9"]
[White "Shield12"]
[Black "ChessLover0108"]
[Result "0-1"]
[WhiteElo "2830"]
[BlackElo "2694"]
[TimeControl "180+1"]
[EndTime "11:47:48 PDT"]
[Termination "ChessLover0108 won by checkmate"]

1. e4 {[%clk 0:03:00.9]} 1... c5 {[%clk 0:02:54.2]} 2. Nf3 {[%clk 0:03:01.5]}
2... d6 {[%clk 0:02:51.5]} 3. Bb5+ {[%clk 0:03:02]} 3... Bd7 {[%clk 0:02:50.3]}
4. Bxd7+ {[%clk 0:03:01.9]} 4... Qxd7 {[%clk 0:02:51.2]} 5. c4 {[%clk 0:03:02]}
5... Nf6 {[%clk 0:02:48.4]} 6. Nc3 {[%clk 0:03:02.2]} 6... g6 {[%clk 0:02:49]}
7. d4 {[%clk 0:03:02.4]} 7... cxd4 {[%clk 0:02:49.9]} 8. Nxd4 {[%clk 0:03:03.3]}
8... Bg7 {[%clk 0:02:50.6]} 9. h3 {[%clk 0:03:03.8]} 9... O-O {[%clk 0:02:51.3]}
10. Be3 {[%clk 0:03:03.1]} 10... Rc8 {[%clk 0:02:45.8]} 11. b3 {[%clk
0:03:01.1]} 11... a6 {[%clk 0:02:42.6]} 12. a4 {[%clk 0:03:00.2]} 12... Nc6
{[%clk 0:02:40.4]} 13. O-O {[%clk 0:02:59.6]} 13... Qd8 {[%clk 0:02:36]} 14. Rc1
{[%clk 0:02:59]} 14... Rab8 {[%clk 0:02:33.8]} 15. Qd3 {[%clk 0:02:57.8]} 15...
Nd7 {[%clk 0:02:32.4]} 16. Rfd1 {[%clk 0:02:55.3]} 16... Nc5 {[%clk 0:02:18.8]}
17. Qb1 {[%clk 0:02:52.5]} 17... Qa5 {[%clk 0:02:18.5]} 18. Nd5 {[%clk
0:02:50.2]} 18... Qd8 {[%clk 0:02:01.5]} 19. Ne2 {[%clk 0:02:30.7]} 19... e6
{[%clk 0:01:48.8]} 20. Ndc3 {[%clk 0:02:28.9]} 20... Qe7 {[%clk 0:01:42.6]} 21.
b4 {[%clk 0:02:26.4]} 21... Nd7 {[%clk 0:01:40.1]} 22. f4 {[%clk 0:02:08.9]}
22... a5 {[%clk 0:01:29.3]} 23. b5 {[%clk 0:02:06.4]} 23... Nb4 {[%clk
0:01:28.6]} 24. Na2 {[%clk 0:02:00.5]} 24... Nxa2 {[%clk 0:01:27.1]} 25. Qxa2
{[%clk 0:02:01.4]} 25... Nc5 {[%clk 0:01:27.9]} 26. Qc2 {[%clk 0:01:51.6]} 26...
Rc7 {[%clk 0:01:13.5]} 27. Rd2 {[%clk 0:01:42.4]} 27... Rbc8 {[%clk 0:01:11.7]}
28. Rcd1 {[%clk 0:01:42.3]} 28... d5 {[%clk 0:01:02.1]} 29. cxd5 {[%clk
0:01:38.4]} 29... exd5 {[%clk 0:01:01]} 30. b6 {[%clk 0:01:31.4]} 30... Rc6
{[%clk 0:00:52]} 31. Rxd5 {[%clk 0:01:25.8]} 31... Nxe4 {[%clk 0:00:50.1]} 32.
Qd3 {[%clk 0:01:22.3]} 32... Nd6 {[%clk 0:00:14.2]} 33. Bf2 {[%clk 0:01:17.7]}
33... Bf8 {[%clk 0:00:07]} 34. Nd4 {[%clk 0:01:15.6]} 34... Rc3 {[%clk
0:00:03.2]} 35. Qf1 {[%clk 0:01:05.7]} 35... Qf6 {[%clk 0:00:03.5]} 36. Nf3
{[%clk 0:01:03]} 36... Ne4 {[%clk 0:00:02.7]} 37. Bd4 {[%clk 0:01:01.8]} 37...
Qxf4 {[%clk 0:00:03.2]} 38. Bxc3 {[%clk 0:00:55.2]} 38... Nxc3 {[%clk
0:00:04.1]} 39. R1d4 {[%clk 0:00:55.6]} 39... Qe3+ {[%clk 0:00:04]} 40. Kh2
{[%clk 0:00:47.4]} 40... Nxd5 {[%clk 0:00:04.9]} 41. Rxd5 {[%clk 0:00:48.3]}
41... Bd6+ {[%clk 0:00:04.1]} 42. Rxd6 {[%clk 0:00:41.5]} 42... Qf4+ {[%clk
0:00:04]} 43. Kg1 {[%clk 0:00:40.3]} 43... Qxd6 {[%clk 0:00:04.9]} 44. Qe2
{[%clk 0:00:31.2]} 44... Qxb6+ {[%clk 0:00:04.5]} 45. Kh1 {[%clk 0:00:30.5]}
45... Rc1+ {[%clk 0:00:04]} 46. Kh2 {[%clk 0:00:30.9]} 46... Qd6+ {[%clk
0:00:04.5]} 47. g3 {[%clk 0:00:31.3]} 47... Rc8 {[%clk 0:00:04.2]} 48. h4 {[%clk
0:00:30.2]} 48... h5 {[%clk 0:00:04.1]} 49. Ng5 {[%clk 0:00:30.2]} 49... Rf8
{[%clk 0:00:03.5]} 50. Ne4 {[%clk 0:00:29.7]} 50... Qe5 {[%clk 0:00:03.3]} 51.
Qf3 {[%clk 0:00:29.7]} 51... Re8 {[%clk 0:00:03.7]} 52. Nc3 {[%clk 0:00:28.3]}
52... Qd4 {[%clk 0:00:03.4]} 53. Nb5 {[%clk 0:00:22.9]} 53... Qd2+ {[%clk
0:00:03.3]} 54. Kh3 {[%clk 0:00:23.1]} 54... Re2 {[%clk 0:00:03.8]} 55. Qh1
{[%clk 0:00:20.1]} 55... Qd7+ {[%clk 0:00:03]} 56. g4 {[%clk 0:00:19.5]} 56...
Qxg4# {[%clk 0:00:03.9]} 0-1

[Event "*** SCC Grand Prix: Titled Tuesday Blitz"]
[Site "Chess.com"]
[Date "2020.09.08"]
[Round "9"]
[White "Snowflake"]
[Black "PavelChernomordik"]
[Result "1-0"]
[WhiteElo "2480"]
[BlackElo "2353"]
[TimeControl "180+1"]
[EndTime "11:47:50 PDT"]
[Termination "Snowflake won on time"]

1. d4 {[%clk 0:03:00.6]} 1... g6 {[%clk 0:03:00]} 2. e4 {[%clk 0:02:54.2]} 2...
Bg7 {[%clk 0:03:00.3]} 3. Nc3 {[%clk 0:02:53.4]} 3... d6 {[%clk 0:02:59]} 4. g3
{[%clk 0:02:46.1]} 4... Nf6 {[%clk 0:02:54.5]} 5. Bg2 {[%clk 0:02:45.2]} 5...
O-O {[%clk 0:02:54.8]} 6. Nge2 {[%clk 0:02:45.5]} 6... Nbd7 {[%clk 0:02:53.9]}
7. O-O {[%clk 0:02:45]} 7... c5 {[%clk 0:02:53.3]} 8. Re1 {[%clk 0:02:41.8]}
8... Rb8 {[%clk 0:02:50.2]} 9. a4 {[%clk 0:02:38.7]} 9... b6 {[%clk 0:02:47.4]}
10. h3 {[%clk 0:02:33.3]} 10... a6 {[%clk 0:02:41.3]} 11. Be3 {[%clk 0:02:24.3]}
11... Bb7 {[%clk 0:02:34.9]} 12. Kh2 {[%clk 0:02:11.2]} 12... Qc7 {[%clk
0:02:31.6]} 13. d5 {[%clk 0:02:01.2]} 13... Ne5 {[%clk 0:02:25.8]} 14. b3 {[%clk
0:01:57.9]} 14... e6 {[%clk 0:02:20.2]} 15. dxe6 {[%clk 0:01:47.6]} 15... fxe6
{[%clk 0:02:18.3]} 16. Nf4 {[%clk 0:01:44.3]} 16... Qe7 {[%clk 0:02:13.4]} 17.
Rc1 {[%clk 0:01:34.2]} 17... g5 {[%clk 0:02:05.8]} 18. Nd3 {[%clk 0:01:28.4]}
18... Nf7 {[%clk 0:01:57.2]} 19. Qd2 {[%clk 0:01:20.5]} 19... g4 {[%clk
0:01:51]} 20. h4 {[%clk 0:01:17.8]} 20... Qc7 {[%clk 0:01:44.5]} 21. Nf4 {[%clk
0:01:15.7]} 21... Rbe8 {[%clk 0:01:42.3]} 22. Rcd1 {[%clk 0:01:13.9]} 22... Qe7
{[%clk 0:01:34.3]} 23. Kg1 {[%clk 0:00:57.6]} 23... Rd8 {[%clk 0:01:31.5]} 24.
Qe2 {[%clk 0:00:56.3]} 24... Ne5 {[%clk 0:01:27.2]} 25. Nd3 {[%clk 0:00:51.4]}
25... Nf3+ {[%clk 0:01:24.7]} 26. Kh1 {[%clk 0:00:41.8]} 26... Nxe1 {[%clk
0:01:22.4]} 27. Rxe1 {[%clk 0:00:42.7]} 27... d5 {[%clk 0:01:19.5]} 28. e5
{[%clk 0:00:36.5]} 28... Ne4 {[%clk 0:01:07.1]} 29. Nxe4 {[%clk 0:00:28.9]}
29... dxe4 {[%clk 0:01:05.3]} 30. Nf4 {[%clk 0:00:29.8]} 30... Bxe5 {[%clk
0:00:59.4]} 31. Qxg4+ {[%clk 0:00:30.2]} 31... Kh8 {[%clk 0:00:56]} 32. Qh5
{[%clk 0:00:22]} 32... Bxf4 {[%clk 0:00:52.7]} 33. Bxf4 {[%clk 0:00:22.9]} 33...
Rxf4 {[%clk 0:00:49.8]} 34. gxf4 {[%clk 0:00:23.8]} 34... e3 {[%clk 0:00:41.3]}
35. Qe5+ {[%clk 0:00:22.3]} 35... Qg7 {[%clk 0:00:36]} 36. Bxb7 {[%clk
0:00:17.5]} 36... Qxe5 {[%clk 0:00:33.6]} 37. fxe5 {[%clk 0:00:18.4]} 37... exf2
{[%clk 0:00:32.3]} 38. Rf1 {[%clk 0:00:18.8]} 38... Rd2 {[%clk 0:00:31.2]} 39.
Be4 {[%clk 0:00:19.3]} 39... Re2 {[%clk 0:00:29.5]} 40. Bd3 {[%clk 0:00:19.7]}
40... Rxe5 {[%clk 0:00:26.4]} 41. Rxf2 {[%clk 0:00:20.2]} 41... Kg7 {[%clk
0:00:24.8]} 42. Kh2 {[%clk 0:00:20.2]} 42... Re3 {[%clk 0:00:22]} 43. Re2 {[%clk
0:00:18.1]} 43... Rf3 {[%clk 0:00:20.3]} 44. Rxe6 {[%clk 0:00:18]} 44... b5
{[%clk 0:00:18.4]} 45. axb5 {[%clk 0:00:17.2]} 45... axb5 {[%clk 0:00:17.7]} 46.
Bxb5 {[%clk 0:00:18.1]} 46... Rf2+ {[%clk 0:00:15.6]} 47. Kg3 {[%clk 0:00:18.4]}
47... Rxc2 {[%clk 0:00:16.4]} 48. Bc4 {[%clk 0:00:18.6]} 48... Rc3+ {[%clk
0:00:11.5]} 49. Kg4 {[%clk 0:00:18.8]} 49... h5+ {[%clk 0:00:08.9]} 50. Kxh5
{[%clk 0:00:17.6]} 50... Rg3 {[%clk 0:00:08.3]} 51. Re7+ {[%clk 0:00:17]} 51...
Kf6 {[%clk 0:00:06.7]} 52. Rc7 {[%clk 0:00:17.1]} 52... Ke5 {[%clk 0:00:01.7]}
53. Rc6 {[%clk 0:00:16.6]} 53... Kf4 {[%clk 0:00:01.2]} 54. Rxc5 {[%clk
0:00:15.8]} 1-0

[Event "*** SCC Grand Prix: Titled Tuesday Blitz"]
[Site "Chess.com"]
[Date "2020.09.08"]
[Round "9"]
[White "Grineva_Marianna"]
[Black "ClydeHillKid"]
[Result "0-1"]
[WhiteElo "2217"]
[BlackElo "2343"]
[TimeControl "180+1"]
[EndTime "11:47:50 PDT"]
[Termination "ClydeHillKid won on time"]

1. e4 {[%clk 0:03:00.9]} 1... e6 {[%clk 0:02:59.9]} 2. d4 {[%clk 0:03:00.2]}
2... d5 {[%clk 0:02:59.6]} 3. Nd2 {[%clk 0:03:00.8]} 3... Nf6 {[%clk 0:02:59.2]}
4. e5 {[%clk 0:03:00.5]} 4... Nfd7 {[%clk 0:02:59]} 5. Bd3 {[%clk 0:03:01.1]}
5... c5 {[%clk 0:02:58.5]} 6. c3 {[%clk 0:03:00.9]} 6... Nc6 {[%clk 0:02:59.1]}
7. Ne2 {[%clk 0:03:00]} 7... Qb6 {[%clk 0:02:59.3]} 8. Nf3 {[%clk 0:02:58]} 8...
cxd4 {[%clk 0:02:59.7]} 9. cxd4 {[%clk 0:02:57.9]} 9... f6 {[%clk 0:03:00.4]}
10. exf6 {[%clk 0:02:56.2]} 10... Nxf6 {[%clk 0:03:01.3]} 11. O-O {[%clk
0:02:54.1]} 11... Bd6 {[%clk 0:03:01.3]} 12. Ng3 {[%clk 0:02:28.3]} 12... O-O
{[%clk 0:02:55.3]} 13. a3 {[%clk 0:02:22.9]} 13... e5 {[%clk 0:02:52.9]} 14.
dxe5 {[%clk 0:02:16.6]} 14... Nxe5 {[%clk 0:02:53.8]} 15. Be3 {[%clk 0:02:00.8]}
15... Qxb2 {[%clk 0:02:44.6]} 16. Ng5 {[%clk 0:01:40.6]} 16... Nxd3 {[%clk
0:02:11.1]} 17. Qxd3 {[%clk 0:01:41.5]} 17... Qe5 {[%clk 0:02:11.2]} 18. Rad1
{[%clk 0:01:34]} 18... Bg4 {[%clk 0:02:03.9]} 19. Rb1 {[%clk 0:01:31]} 19... h6
{[%clk 0:02:01]} 20. Nf3 {[%clk 0:01:18.4]} 20... Bxf3 {[%clk 0:01:59.9]} 21.
gxf3 {[%clk 0:01:19.3]} 21... b6 {[%clk 0:01:59.8]} 22. Rfe1 {[%clk 0:01:15.4]}
22... Rae8 {[%clk 0:01:37.8]} 23. f4 {[%clk 0:01:09.9]} 23... Qe6 {[%clk
0:01:35.4]} 24. Nf5 {[%clk 0:01:03.4]} 24... Ne4 {[%clk 0:01:31.7]} 25. Nxd6
{[%clk 0:00:59.8]} 25... Qxd6 {[%clk 0:01:32.6]} 26. Rbd1 {[%clk 0:00:58]} 26...
Rf5 {[%clk 0:01:26.5]} 27. Kf1 {[%clk 0:00:55]} 27... Qg6 {[%clk 0:01:16.5]} 28.
Rc1 {[%clk 0:00:47.7]} 28... Rh5 {[%clk 0:00:59.3]} 29. Red1 {[%clk 0:00:39.2]}
29... Rxh2 {[%clk 0:00:49]} 30. Qxd5+ {[%clk 0:00:38.5]} 30... Kh8 {[%clk
0:00:43.1]} 31. Ke2 {[%clk 0:00:24.5]} 31... Rxf2+ {[%clk 0:00:33.3]} 32. Bxf2
{[%clk 0:00:24.2]} 32... Nc3+ {[%clk 0:00:32.8]} 33. Kf1 {[%clk 0:00:20.6]}
33... Nxd5 {[%clk 0:00:32.8]} 34. Rxd5 {[%clk 0:00:21]} 34... Qe4 {[%clk
0:00:31.2]} 35. Rcd1 {[%clk 0:00:19.2]} 35... Qh1+ {[%clk 0:00:28.1]} 36. Bg1
{[%clk 0:00:19.3]} 36... Qh3+ {[%clk 0:00:24.7]} 37. Kf2 {[%clk 0:00:18.4]}
37... Qe3+ {[%clk 0:00:24]} 38. Kg2 {[%clk 0:00:17.7]} 38... Qxf4 {[%clk
0:00:23.4]} 39. R5d4 {[%clk 0:00:15.7]} 39... Qg5+ {[%clk 0:00:22]} 40. Kh1
{[%clk 0:00:15.2]} 40... Qh5+ {[%clk 0:00:21.2]} 41. Kg2 {[%clk 0:00:14.7]}
41... Re2+ {[%clk 0:00:20.7]} 42. Bf2 {[%clk 0:00:14.5]} 42... Qg6+ {[%clk
0:00:16.9]} 43. Kf1 {[%clk 0:00:14.5]} 43... Re8 {[%clk 0:00:15.9]} 44. Rd8
{[%clk 0:00:13.5]} 44... Rxd8 {[%clk 0:00:15.8]} 45. Rxd8+ {[%clk 0:00:14]}
45... Kh7 {[%clk 0:00:16.7]} 46. Rd4 {[%clk 0:00:13.6]} 46... Qb1+ {[%clk
0:00:15.7]} 47. Ke2 {[%clk 0:00:14.1]} 47... Qa2+ {[%clk 0:00:15.1]} 48. Kf1
{[%clk 0:00:12]} 48... Qxa3 {[%clk 0:00:15.5]} 49. Kg2 {[%clk 0:00:09.3]} 49...
Qe7 {[%clk 0:00:12.4]} 50. Kf3 {[%clk 0:00:06.9]} 50... a5 {[%clk 0:00:12]} 51.
Be3 {[%clk 0:00:07.1]} 51... b5 {[%clk 0:00:11.7]} 52. Rd5 {[%clk 0:00:06.2]}
52... Qb7 {[%clk 0:00:09.7]} 53. Ke4 {[%clk 0:00:06.1]} 53... b4 {[%clk
0:00:09.4]} 54. Kd4 {[%clk 0:00:06.5]} 54... b3 {[%clk 0:00:09.1]} 55. Bc1
{[%clk 0:00:02]} 55... b2 {[%clk 0:00:08.4]} 56. Bxb2 {[%clk 0:00:02.3]} 56...
Qxb2+ {[%clk 0:00:09.2]} 57. Kc5 {[%clk 0:00:01.3]} 57... Qb4+ {[%clk
0:00:08.6]} 58. Kc6 {[%clk 0:00:01.1]} 58... Qe4 {[%clk 0:00:09.2]} 0-1

[Event "*** SCC Grand Prix: Titled Tuesday Blitz"]
[Site "Chess.com"]
[Date "2020.09.08"]
[Round "9"]
[White "BUITRONGHAO"]
[Black "mapleaff"]
[Result "1-0"]
[WhiteElo "2556"]
[BlackElo "2375"]
[TimeControl "180+1"]
[EndTime "11:47:51 PDT"]
[Termination "BUITRONGHAO won by resignation"]

1. e4 {[%clk 0:03:00.9]} 1... e5 {[%clk 0:02:59.4]} 2. Nf3 {[%clk 0:03:00.2]}
2... Nc6 {[%clk 0:02:59.8]} 3. Bb5 {[%clk 0:03:00.8]} 3... Nf6 {[%clk
0:02:59.8]} 4. O-O {[%clk 0:03:00.7]} 4... Nxe4 {[%clk 0:02:59.8]} 5. Re1 {[%clk
0:03:01.2]} 5... Nd6 {[%clk 0:03:00]} 6. Nxe5 {[%clk 0:03:01.8]} 6... Be7 {[%clk
0:02:59.7]} 7. Bf1 {[%clk 0:03:01.4]} 7... Nxe5 {[%clk 0:03:00.1]} 8. Rxe5
{[%clk 0:03:02.3]} 8... O-O {[%clk 0:03:00.3]} 9. d4 {[%clk 0:03:03]} 9... Bf6
{[%clk 0:03:00.3]} 10. Re1 {[%clk 0:03:03.7]} 10... Re8 {[%clk 0:03:00.7]} 11.
d5 {[%clk 0:03:02.2]} 11... Rxe1 {[%clk 0:02:58.9]} 12. Qxe1 {[%clk 0:03:02.2]}
12... Qe8 {[%clk 0:02:59.4]} 13. Qd1 {[%clk 0:02:51.3]} 13... b6 {[%clk
0:02:57.2]} 14. Qd3 {[%clk 0:02:49.1]} 14... a5 {[%clk 0:02:55.5]} 15. Nd2
{[%clk 0:02:47.7]} 15... Ba6 {[%clk 0:02:54.1]} 16. c4 {[%clk 0:02:48]} 16...
Nb7 {[%clk 0:02:45.3]} 17. Ne4 {[%clk 0:02:38.6]} 17... Be7 {[%clk 0:02:43.3]}
18. Bf4 {[%clk 0:02:37.4]} 18... Rc8 {[%clk 0:02:41]} 19. Re1 {[%clk 0:02:34.6]}
19... Qf8 {[%clk 0:02:33.3]} 20. Qg3 {[%clk 0:02:34.4]} 20... Nd6 {[%clk
0:02:23.8]} 21. b3 {[%clk 0:02:08.8]} 21... Nxe4 {[%clk 0:02:15.8]} 22. Rxe4
{[%clk 0:02:09.7]} 22... Bd6 {[%clk 0:02:14.7]} 23. Bd3 {[%clk 0:01:54.7]} 23...
Bxf4 {[%clk 0:02:09.4]} 24. Qxf4 {[%clk 0:01:53.9]} 24... d6 {[%clk 0:02:06.1]}
25. Qf5 {[%clk 0:01:48]} 25... g6 {[%clk 0:01:59.2]} 26. Qd7 {[%clk 0:01:40.7]}
26... Qh6 {[%clk 0:01:22.9]} 27. h4 {[%clk 0:01:31.2]} 27... Qc1+ {[%clk
0:01:20.9]} 28. Kh2 {[%clk 0:01:31]} 28... Rf8 {[%clk 0:01:01.1]} 29. Qxc7
{[%clk 0:01:23.9]} 29... Qd2 {[%clk 0:01:01.2]} 30. Be2 {[%clk 0:01:23.6]} 30...
Bc8 {[%clk 0:00:59.3]} 31. Qxd6 {[%clk 0:01:15.4]} 31... Bf5 {[%clk 0:00:59.6]}
32. Re3 {[%clk 0:01:12.2]} 32... Qxa2 {[%clk 0:00:54.4]} 33. Qxb6 {[%clk
0:01:11.3]} 33... h5 {[%clk 0:00:51.4]} 34. Qd4 {[%clk 0:01:05.5]} 34... Qb1
{[%clk 0:00:34.4]} 35. c5 {[%clk 0:01:02]} 35... Qc2 {[%clk 0:00:19.8]} 36. c6
{[%clk 0:00:57.4]} 36... Rd8 {[%clk 0:00:19.1]} 37. Bf3 {[%clk 0:00:53.1]} 37...
Qxc6 {[%clk 0:00:16.2]} 38. dxc6 {[%clk 0:00:50.2]} 38... Rxd4 {[%clk
0:00:16.2]} 39. Re8+ {[%clk 0:00:50.6]} 39... Kg7 {[%clk 0:00:15.9]} 40. c7
{[%clk 0:00:51.1]} 40... Rxh4+ {[%clk 0:00:10.1]} 41. Kg1 {[%clk 0:00:51.3]}
41... Rb4 {[%clk 0:00:11]} 42. Bd5 {[%clk 0:00:21]} 42... Rd4 {[%clk 0:00:09]}
43. Bc4 {[%clk 0:00:13.9]} 43... a4 {[%clk 0:00:06.9]} 44. c8=Q {[%clk 0:00:14]}
44... Bxc8 {[%clk 0:00:04.6]} 45. Rxc8 {[%clk 0:00:14.9]} 45... axb3 {[%clk
0:00:04.6]} 46. Bxb3 {[%clk 0:00:15.4]} 46... Rb4 {[%clk 0:00:04.1]} 47. Bc4
{[%clk 0:00:15]} 47... g5 {[%clk 0:00:02.6]} 48. Rc7 {[%clk 0:00:14.8]} 48...
Kg6 {[%clk 0:00:02.9]} 49. Bxf7+ {[%clk 0:00:13.9]} 49... Kh6 {[%clk 0:00:03.6]}
50. Rc6+ {[%clk 0:00:14]} 50... Kg7 {[%clk 0:00:03.3]} 51. Bxh5 {[%clk
0:00:14.9]} 51... g4 {[%clk 0:00:03.6]} 52. Rg6+ {[%clk 0:00:14.5]} 52... Kh7
{[%clk 0:00:03.2]} 53. Rxg4 {[%clk 0:00:15.4]} 53... Rb5 {[%clk 0:00:03.6]} 54.
Bg6+ {[%clk 0:00:14.9]} 54... Kh6 {[%clk 0:00:03.2]} 55. Be4 {[%clk 0:00:15.4]}
55... Rb4 {[%clk 0:00:02.9]} 56. f3 {[%clk 0:00:15.6]} 56... Kh5 {[%clk
0:00:02.7]} 57. Bg6+ {[%clk 0:00:16]} 57... Kh6 {[%clk 0:00:02.3]} 58. Rxb4
{[%clk 0:00:16.9]} 1-0